fUST/lending_fUST_20260323
["ID","MTS","AMOUNT","RATE_DAILY","PERIOD"]
[408783246,1774253433363,-2351.0,2.54e-05,2]
[408783247,1774253433372,-452.32911314,2.545e-05,2]
[408783248,1774253433382,-864.0,2.591e-05,2]
[408783249,1774253433391,-500.0,2.663e-05,2]
[408783250,1774253433400,-500.0,2.663e-05,2]
[408783251,1774253433409,-500.0,2.724e-05,2]
[408783252,1774253433418,-302.80900926,2.724e-05,2]
[408783253,1774253433427,-500.0,2.724e-05,2]
[408783254,1774253433436,-500.0,2.724e-05,2]
[408783255,1774253433445,-500.29013181,2.724e-05,2]
[408783256,1774253433454,-500.0,2.724e-05,2]
[408783257,1774253433464,-500.0,2.724e-05,2]
[408783258,1774253433473,-1001.33865107,2.752e-05,2]
[408783259,1774253433483,-823.0,2.794e-05,2]
[408783260,1774253433493,-3292.0,2.794e-05,2]
[408783261,1774253433502,-501.74319686,2.841e-05,2]
[408783262,1774253433511,-1000.0,2.841e-05,2]
[408783263,1774253433520,-1000.0,2.841e-05,2]
[408783264,1774253433529,-1000.0,2.841e-05,2]
[408783265,1774253433539,-1115.66939479,2.841e-05,2]
[408783266,1774253433549,-500.0,2.841e-05,2]
[408783267,1774253433558,-1000.0,2.85e-05,2]
[408783268,1774253433567,-523.57380188,2.869e-05,2]
[408783269,1774253433577,-500.66690474,3.066e-05,2]
[408783270,1774253433586,-3264.0,3.073e-05,2]
[408783271,1774253433596,-1000.0,3.135e-05,2]
[408783272,1774253433605,-244.0,3.135e-05,2]
[408783273,1774253433614,-1000.0,3.21e-05,2]
[408783274,1774253433624,-1000.0,3.272e-05,2]
[408783275,1774253433633,-1000.0,3.272e-05,2]
[408783276,1774253433642,-748.39667512,3.272e-05,2]
[408783277,1774253433651,-1000.0,3.272e-05,2]
[408783278,1774253433660,-501.17017514,3.272e-05,2]
[408783279,1774253433669,-994.86167661,3.389e-05,2]
[408783280,1774253433678,-1500.0,3.389e-05,2]
[408783281,1774253433689,-1000.0,3.389e-05,2]
[408783282,1774253433698,-1000.0,3.448e-05,2]
[408783283,1774253433708,-492.0,3.448e-05,2]
[408783284,1774253433717,-1331.65821657,3.758e-05,2]
[408783285,1774253433726,-1000.0,3.793e-05,2]
[408783286,1774253433736,-791.0,3.793e-05,2]
[408783287,1774253433746,-852.80557736,3.82e-05,2]
[408783288,1774253433755,-1500.0,3.82e-05,2]
[408783289,1774253433764,-1500.0,3.82e-05,2]
[408783290,1774253433773,-2000.0,3.937e-05,2]
[408783291,1774253433783,-555.93605891,4.172e-05,2]
[408783292,1774253433796,-444.06394109,4.172e-05,2]
[408783293,1774253433805,-675.50538501,4.172e-05,2]
[408783294,1774253438772,-324.49461499,4.172e-05,2]
[408783295,1774253438782,-500.58373234,4.368e-05,2]
[408783296,1774253438792,-1243.057622,4.368e-05,2]
[408783297,1774253438801,-553.77883416,4.485e-05,2]
[408783298,1774253438811,-1000.0,4.589e-05,2]
[408783299,1774253438820,-1000.0,4.589e-05,2]
[408783300,1774253438829,-579.0,4.589e-05,2]
[408783301,1774253438839,-1000.0,5.048e-05,2]
[408783302,1774253438848,-1000.0,5.048e-05,2]
[408783303,1774253438857,-1000.0,5.048e-05,2]
[408783304,1774253438866,-1000.0,5.553e-05,2]
[408783305,1774253438879,-1000.0,5.553e-05,2]
[408783306,1774253438888,-1000.0,5.553e-05,2]
[408783307,1774253438898,-715.0,5.553e-05,2]
[408783308,1774253438907,-1000.0,6.108e-05,2]
[408783309,1774253438916,-1000.0,6.108e-05,2]
[408783310,1774253438926,-1000.0,6.108e-05,2]
[408783311,1774253438935,-500.0,8.219e-05,2]
[408783312,1774253438944,-500.0,8.493e-05,2]
[408783313,1774253438954,-500.0,8.767e-05,2]
[408783314,1774253438963,-500.0,9.041e-05,2]
[408783315,1774253438972,-463.27840671,9.315e-05,2]
[408783316,1774253438981,-443.46959277,0.00013426,2]
[408783317,1774253438990,-1000.0,0.00013699,2]
[408783318,1774253439000,-320.25550062,0.00018157,2]
[408783319,1774253439009,-308.35335611,0.00018157,2]
[408783320,1774253439018,-150.0,0.0002,2]
[408783321,1774253439027,-161.0,0.000212,2]
[408783322,1774253439037,-185.979,0.00021347,2]
[408783323,1774253439046,-442.712,0.00021347,2]
[408783324,1774253439055,-7170.56,0.0002191,2]
[408783325,1774253439065,-5000.0,0.0002191,2]
[408783326,1774253439075,-5000.0,0.0002191,2]
[408783327,1774253439084,-5000.0,0.0002191,2]
[408783328,1774253439093,-5000.0,0.0002191,2]
[408783329,1774253439102,-545.68871727,0.00021924,30]
[408783330,1774253439111,-2150.738,0.00021993,2]
[408783331,1774253439121,-150.0,0.00022,2]
[408783332,1774253439130,-1640.27771189,0.000221,2]
[408783333,1774253439143,-5000.0,0.000221,2]
[408783334,1774253439152,-5000.0,0.000221,2]
[408783335,1774253439162,-5000.0,0.000221,2]
[408783336,1774253439171,-690.0,0.000221,3]
[408783337,1774253439181,-716.53910292,0.000221,3]
[408783338,1774253439190,-454.9158682,0.00022145,2]
[408783340,1774253439199,-454.9097308,0.00022153,2]
[408783341,1774253439209,-1585.165018,0.000223,2]
[408783342,1774253439218,-572.49641943,0.0002231,2]
[408783343,1774253439228,-40003.56278091,0.00022435,3]
[408783344,1774253439238,-150.0,0.00022441,3]
[408783345,1774253439248,-150.0,0.00022441,3]
[408783346,1774253439257,-221.04375238,0.00022441,3]
[408783347,1774253439267,-500.0,0.00022441,3]
[408783348,1774253439276,-500.0,0.00022441,3]
[408783349,1774253439285,-500.0,0.00022441,3]
[408783350,1774253439295,-498.40863918,0.00022441,3]
[408783352,1774253439304,-500.0,0.00022441,3]
[408783354,1774253439313,-500.0,0.00022441,3]
[408783356,1774253439323,-614.77046264,0.00022441,3]
[408783358,1774253439332,-646.0,0.00022463,3]
[408783360,1774253439342,-646.0,0.00022463,3]
[408783362,1774253439351,-646.0,0.00022463,3]
[408783363,1774253439361,-646.0,0.00022463,3]
[408783385,1774253439370,-646.0,0.00022463,3]
[408783388,1774253439574,-646.0,0.00022463,3]
[408783390,1774253439584,-646.0,0.00022463,3]
[408783392,1774253439594,-646.0,0.00022463,3]
[408783394,1774253439603,-646.0,0.00022463,3]
[408783396,1774253439613,-646.0,0.00022463,3]
[408783398,1774253439623,-646.0,0.00022463,3]
[408783399,1774253439632,-646.0,0.00022463,3]
[408783401,1774253439641,-646.0,0.00022463,3]
[408783403,1774253439650,-646.0,0.00022463,3]
[408783405,1774253439659,-646.0,0.00022463,3]
[408783407,1774253439668,-646.0,0.00022463,3]
[408783409,1774253439682,-646.0,0.00022463,3]
[408783411,1774253439691,-646.0,0.00022463,3]
[408783413,1774253439700,-646.0,0.00022463,3]
[408783414,1774253439709,-646.0,0.00022463,3]
[408783415,1774253439717,-646.0,0.00022463,3]
[408783417,1774253439726,-646.0,0.00022463,3]
[408783419,1774253439735,-646.0,0.00022463,3]
[408783421,1774253439744,-646.0,0.00022463,3]
[408783423,1774253439755,-646.0,0.00022463,3]
[408783425,1774253439764,-646.0,0.00022463,3]
[408783427,1774253439774,-646.0,0.00022463,3]
[408783429,1774253439783,-646.0,0.00022463,3]
[408783431,1774253439792,-646.0,0.00022463,3]
[408783433,1774253439801,-500.0,0.00022497,2]
[408783435,1774253439812,-658537.13356514,0.00022535,2]
[408783438,1774253439825,-418.6,0.00022535,2]
[408783732,1774253443737,-646.0,0.00022463,3]
[408783733,1774253443747,-487.36203108,0.00022463,3]
[408783734,1774253443759,-158.63796892,0.00022463,3]
[408783735,1774253443769,-646.0,0.00022463,3]
[408783736,1774253443778,-473.05247575,0.00022535,2]
[408783780,1774254003542,151.62,2e-05,2]
[408783781,1774254003963,151.62,2e-05,2]
[408783782,1774254004362,151.62,2e-05,2]
[408783783,1774254004774,151.62,2e-05,2]
[408783784,1774254005218,151.62,2e-05,2]
[408783785,1774254005633,151.62,2e-05,2]
[408783786,1774254006114,151.62,2e-05,2]
[408783787,1774254006538,151.62,2e-05,2]
[408783788,1774254007543,151.62,2e-05,2]
[408783789,1774254146738,-2490.58133119,2.058e-05,2]
[408783790,1774254146762,-5000.0,2.079e-05,2]
[408783791,1774254146784,-300.0,2.099e-05,2]
[408783792,1774254146806,-151.62,2.1e-05,2]
[408783793,1774254146828,-151.62,2.1e-05,2]
[408783794,1774254146850,-151.62,2.1e-05,2]
[408783795,1774254146873,-151.62,2.1e-05,2]
[408783796,1774254146896,-151.62,2.1e-05,2]
[408783797,1774254146919,-151.62,2.1e-05,2]
[408783798,1774254146941,-151.62,2.1e-05,2]
[408783799,1774254146963,-151.62,2.1e-05,2]
[408783800,1774254146985,-151.62,2.1e-05,2]
[408783801,1774254147008,-151.62,2.1e-05,2]
[408783802,1774254147031,-151.62,2.1e-05,2]
[408783803,1774254147055,-151.62,2.1e-05,2]
[408783804,1774254147079,-151.62,2.1e-05,2]
[408783805,1774254147103,-151.62,2.1e-05,2]
[408783806,1774254147127,-86.73866881,2.1e-05,2]
[408783807,1774254150624,-64.88133119,2.1e-05,2]
[408783808,1774254150649,-151.62,2.1e-05,2]
[408783809,1774254150673,-151.62,2.1e-05,2]
[408783810,1774254150696,-151.62,2.1e-05,2]
[408783811,1774254150719,-151.62,2.1e-05,2]
[408783812,1774254150743,-300.0,2.141e-05,2]
[408783813,1774254150769,-300.0,2.141e-05,2]
[408783814,1774254150794,-300.0,2.141e-05,2]
[408783815,1774254150818,-300.0,2.141e-05,2]
[408783816,1774254150842,-300.0,2.141e-05,2]
[408783817,1774254150868,-300.0,2.141e-05,2]
[408783818,1774254150892,-300.0,2.141e-05,2]
[408783819,1774254150928,-300.0,2.141e-05,2]
[408783820,1774254150955,-300.0,2.141e-05,2]
[408783821,1774254150983,-300.0,2.141e-05,2]
[408783822,1774254151009,-300.0,2.141e-05,2]
[408783823,1774254151035,-300.0,2.141e-05,2]
[408783824,1774254151062,-300.0,2.141e-05,2]
[408783825,1774254151088,-300.0,2.141e-05,2]
[408783826,1774254151113,-300.0,2.141e-05,2]
[408783827,1774254151139,-600.0,2.141e-05,2]
[408783828,1774254151165,-151.62,2.2e-05,2]
[408783829,1774254151189,-151.62,2.2e-05,2]
[408783830,1774254151213,-151.62,2.2e-05,2]
[408783831,1774254151237,-151.62,2.2e-05,2]
[408783832,1774254151262,-151.62,2.2e-05,2]
[408783833,1774254151286,-151.62,2.2e-05,2]
[408783834,1774254151310,-151.62,2.2e-05,2]
[408783835,1774254151338,-151.62,2.2e-05,2]
[408783836,1774254151362,-151.62,2.2e-05,2]
[408783837,1774254151388,-151.62,2.2e-05,2]
[408783838,1774254151413,-151.62,2.2e-05,2]
[408783839,1774254151440,-720.0,2.355e-05,2]
[408783840,1774254151466,-864.0,2.591e-05,2]
[408783841,1774254151493,-976.81866881,2.85e-05,2]
[408783842,1774254155420,-23.18133119,2.85e-05,2]
[408783843,1774254178237,-5000.0,3.104e-05,2]
[408783844,1774254178260,-1000.0,3.135e-05,2]
[408783845,1774254178282,-244.0,3.135e-05,2]
[408783846,1774254178305,-1000.0,3.448e-05,2]
[408783847,1774254178331,-492.0,3.448e-05,2]
[408783848,1774254178362,-1000.0,3.793e-05,2]
[408783849,1774254178389,-791.0,3.793e-05,2]
[408783872,1774254624389,-297.61311331,3.928e-05,2]
[408783873,1774254624411,-945.04332484,3.928e-05,2]
[408783910,1774254631836,-300.0,3.968e-05,2]
[408783942,1774254637893,-1341.25548051,3.968e-05,2]
[408783952,1774254640514,-1637.18055006,3.968e-05,2]
[408783975,1774254642963,-1721.56396943,3.968e-05,2]
[408783977,1774254642974,-300.0,4.499e-05,2]
[408783978,1774254642984,-300.0,4.499e-05,2]
[408783979,1774254642993,-1200.0,4.499e-05,2]
[408783980,1774254643003,-300.0,4.68e-05,2]
[408783981,1774254643013,-300.0,4.68e-05,2]
[408783982,1774254643023,-300.0,4.68e-05,2]
[408783984,1774254643033,-300.0,4.68e-05,2]
[408783986,1774254643042,-300.0,4.68e-05,2]
[408783987,1774254643054,-300.0,4.68e-05,2]
[408783988,1774254643064,-300.0,4.68e-05,2]
[408783989,1774254643073,-300.0,4.68e-05,2]
[408783990,1774254643083,-300.0,4.68e-05,2]
[408783991,1774254643094,-300.0,4.68e-05,2]
[408783992,1774254643103,-300.0,4.68e-05,2]
[408783993,1774254643113,-300.0,4.68e-05,2]
[408783994,1774254643122,-300.0,4.68e-05,2]
[408783995,1774254643132,-300.0,4.68e-05,2]
[408783996,1774254643142,-300.0,4.68e-05,2]
[408783997,1774254643153,-206.1638502,7.566e-05,2]
[408783998,1774254643162,-10272.59543488,8.48e-05,2]
[408783999,1774254643175,-1266.46,8.48e-05,2]
[408784000,1774254643186,-2014.98868588,8.48e-05,2]
[408784001,1774254643201,-3154.61136444,8.48e-05,2]
[408784038,1774254646230,-247.66381489,8.48e-05,2]
[408784039,1774254646240,-1000.0,0.00013699,2]
[408784040,1774254646249,-9.76254174,0.0001374,2]
[408784041,1774254646588,-490.23745826,0.0001374,2]
[408784042,1774254646598,-77961.82537592,0.00014,7]
[408784043,1774254646608,-1000.0,0.00014238,2]
[408784044,1774254646617,-742.7419971,0.00017809,2]
[408784045,1774254646626,-2435.945798,0.00019559,2]
[408784046,1774254646635,-41044.44288351,0.0002,2]
[408784047,1774254646647,-3565.69888033,0.0002,2]
[408784048,1774254646658,-26986.05703888,0.0002,2]
[408784049,1774254710669,-47.61311331,0.00011872,2]
[408784050,1774254710694,-202.38688669,0.00011872,2]
[408784076,1774255831878,-2.95795639,0.00013026,2]
[408784081,1774255831919,-1864.67156624,0.00013026,2]
[408784083,1774255831930,-619.84912104,0.00013026,2]
[408784101,1774255837911,-1926.91878166,0.00013026,2]
[408784109,1774255838018,-585.60257467,0.00013026,2]
[408784110,1774255838028,-607.0,0.00013158,2]
[408784111,1774255838037,-521.14351639,0.00013698,2]
[408784112,1774255838046,-1000.0,0.00013699,2]
[408784113,1774255838056,-258.81659022,0.0001805,2]
[408784114,1774255838065,-447.38872947,0.0001805,2]
[408784115,1774255838075,-1200.0,0.00018963,2]
[408784116,1774255838084,-300.0,0.00018964,2]
[408784117,1774255838093,-300.0,0.00018964,2]
[408784118,1774255838102,-300.0,0.00018964,2]
[408784119,1774255838111,-28402.3183201,0.00018966,2]
[408784120,1774255838123,-1000.099999,0.0001993,120]
[408784121,1774255838133,-500.0,0.00019973,2]
[408784122,1774255838143,-270.21239066,0.00019999,2]
[408784123,1774255838153,-58051.6758566,0.0002,2]
[408784124,1774255838164,-12165.35797545,0.0002,2]
[408784125,1774255838175,-14908.05401006,0.0002,2]
[408784126,1774255838186,-339.0,0.0002,2]
[408784127,1774255838196,-339.0,0.0002,2]
[408784128,1774255838207,-152.63673915,0.0002,2]
[408784129,1774255838216,-447.93823294,0.0002,2]
[408784130,1774255838225,-270.11753996,0.00020118,2]
[408784131,1774255838234,-465.86986239,0.00020317,2]
[408784132,1774255838244,-805.29971305,0.00020317,2]
[408784133,1774255838254,-2435.945798,0.00020382,2]
[408784134,1774255838263,-600.0,0.00020399,2]
[408784135,1774255838273,-324.727049,0.00020485,2]
[408784136,1774255838282,-300.0,0.00020672,2]
[408784137,1774255838291,-258.0,0.00020672,2]
[408784138,1774255838301,-983.0,0.00020771,2]
[408784139,1774255838311,-422.34924317,0.00020999,2]
[408784140,1774255838320,-173.95244407,0.00020999,2]
[408784141,1774255838330,-34369.86377377,0.00021,2]
[408784142,1774255838339,-2435.945798,0.00021205,2]
[408784143,1774255838348,-454.9097308,0.00021307,2]
[408784144,1774255838357,-454.9280236,0.00021307,2]
[408784145,1774255838367,-324.7093095,0.00021325,2]
[408784146,1774255838376,-15380.3736,0.00021381,2]
[408784147,1774255838386,-2829.44,0.00021408,2]
[408784148,1774255838396,-163.09826944,0.00021748,2]
[408784149,1774255838406,-582.67464399,0.00021748,2]
[408784150,1774255838415,-2150.738,0.00021748,2]
[408784151,1774255838424,-537.6845,0.00021748,2]
[408784152,1774255838434,-557.5788265,0.00021803,2]
[408784153,1774255838443,-578.20924308,0.00021858,2]
[408784154,1774255838452,-599.60298507,0.00021913,2]
[408784155,1774255838462,-500.0,0.00021917,4]
[408784156,1774255838472,-800.99,0.00021917,4]
[408784157,1774255838481,-500.0,0.00021917,4]
[408784158,1774255838491,-500.0,0.00021917,4]
[408784159,1774255838501,-172.35387397,0.00021917,4]
[408784160,1774255838510,-266.22832077,0.00021917,4]
[408784161,1774255838520,-497.35375464,0.00021917,4]
[408784162,1774255838529,-263.88112558,0.00021917,4]
[408784163,1774255838540,-500.0,0.00021917,4]
[408784164,1774255838550,-177.85836693,0.00021917,4]
[408784165,1774255838560,-500.0,0.00021917,4]
[408784166,1774255838570,-1000.0,0.00021917,2]
[408784167,1774255838579,-590.36065223,0.00021917,4]
[408784168,1774255838588,-404.68969264,0.00021917,4]
[408784169,1774255838598,-164.77541914,0.00021917,4]
[408784170,1774255838607,-335.54119258,0.00021917,4]
[408784171,1774255838617,-425.71129678,0.00021917,4]
[408784172,1774255838626,-284.63466345,0.00021917,4]
[408784173,1774255838636,-156.75884008,0.00021917,4]
[408784174,1774255838646,-179.99594253,0.00021917,4]
[408784175,1774255838655,-272.29460089,0.00021917,4]
[408784176,1774255838664,-163.84929897,0.00021917,4]
[408784177,1774255838674,-157.25108314,0.00021917,4]
[408784178,1774255838683,-530.71,0.00021917,4]
[408784179,1774255838693,-169.41096626,0.00021917,4]
[408784180,1774255838702,-621.78829552,0.00021968,2]
[408784181,1774255838711,-500.7292289,0.00021991,2]
[408784182,1774255838720,-500.91790075,0.00021991,2]
[408784183,1774255838734,-10000.0,0.00022,15]
[408784184,1774255838743,-5000.0,0.00022,10]
[408784185,1774255838753,-150.0,0.00022,2]
[408784186,1774255838762,-644.79446246,0.00022023,2]
[408784187,1774255838773,-2435.945798,0.00022029,2]
[408784188,1774255838783,-668.65185757,0.00022078,2]
[408784189,1774255838793,-578.64562558,0.00022133,2]
[408784190,1774255838804,-454.8456294,0.00022155,2]
[408784191,1774255838814,-253.83139041,0.00022167,3]
[408784192,1774255838823,-204.55586514,0.00022167,3]
[408784193,1774255838832,-202.65452953,0.00022167,3]
[408784194,1774255838842,-150.0,0.00022167,3]
[408784195,1774255838852,-150.0,0.00022167,3]
[408784196,1774255838861,-203.29410685,0.00022167,3]
[408784197,1774255838870,-252.89195219,0.00022167,3]
[408784198,1774255838880,-235.56763617,0.00022167,3]
[408784199,1774255838889,-500.0,0.00022167,3]
[408784200,1774255838898,-500.0,0.00022167,3]
[408784201,1774255838908,-158.06573234,0.00022167,3]
[408784202,1774255838919,-500.0,0.00022167,3]
[408784203,1774255838929,-296.31670386,0.00022167,3]
[408784204,1774255838938,-165.7034546,0.00022167,3]
[408784205,1774255838948,-156.20769032,0.00022167,3]
[408784206,1774255838957,-160.5351087,0.00022167,3]
[408784207,1774255838966,-500.0,0.00022191,4]
[408784208,1774255838975,-800.99,0.00022191,4]
[408784209,1774255838985,-500.0,0.00022191,4]
[408784210,1774255838994,-500.0,0.00022191,4]
[408784211,1774255839003,-496.60063315,0.00022191,4]
[408784212,1774255839012,-500.0,0.00022191,4]
[408784213,1774255839021,-1000.0,0.00022191,2]
[408784214,1774255839031,-530.71,0.00022191,4]
[408784215,1774255839040,-674.0,0.00022287,10]
[408784216,1774255839050,-2230.315306,0.00022296,2]
[408784217,1774255839059,-500.0,0.00022363,120]
[408784218,1774255839069,-209.99,0.00022363,120]
[408784219,1774255839078,-720.0,0.00022439,10]
[408784220,1774255839087,-391.848,0.00022463,2]
[408784221,1774255839096,-500.0,0.00022465,4]
[408784222,1774255839105,-800.99,0.00022465,4]
[408784223,1774255839115,-500.0,0.00022465,4]
[408784224,1774255839124,-500.0,0.00022465,4]
[408784225,1774255839134,-500.0,0.00022465,4]
[408784226,1774255839143,-1000.0,0.00022465,2]
[408784227,1774255839152,-530.71,0.00022465,4]
[408784228,1774255839162,-151.0,0.00022475,2]
[408784229,1774255839171,-151.0,0.00022475,2]
[408784230,1774255839181,-151.0,0.00022475,2]
[408784231,1774255839190,-151.0,0.00022475,2]
[408784232,1774255839201,-151.0,0.00022475,2]
[408784233,1774255839210,-151.0,0.00022475,2]
[408784234,1774255839220,-511.96669625,0.000225,30]
[408784235,1774255839229,-784.645632,0.00022506,2]
[408784236,1774255839238,-784.645632,0.00022506,2]
[408784237,1774255839247,-784.645632,0.00022506,2]
[408784238,1774255839256,-784.645632,0.00022506,2]
[408784239,1774255839265,-278.366751,0.00022506,2]
[408784240,1774255839274,-278.366751,0.00022506,2]
[408784241,1774255839284,-278.366751,0.00022506,2]
[408784242,1774255839294,-278.366751,0.00022506,2]
[408784243,1774255839303,-151.0,0.00022506,2]
[408784244,1774255839313,-151.0,0.00022506,2]
[408784245,1774255839322,-151.0,0.00022506,2]
[408784246,1774255839331,-151.0,0.00022506,2]
[408784247,1774255839340,-151.0,0.00022506,2]
[408784248,1774255839349,-151.0,0.00022506,2]
[408784249,1774255839358,-151.0,0.00022506,2]
[408784250,1774255839367,-151.0,0.00022506,2]
[408784251,1774255839376,-200.503863,0.00022506,2]
[408784252,1774255839388,-200.503863,0.00022506,2]
[408784253,1774255839398,-200.503863,0.00022506,2]
[408784254,1774255839407,-200.503863,0.00022506,2]
[408784255,1774255839416,-300.0,0.00022506,2]
[408784256,1774255839426,-364783.82775303,0.00022535,2]
[408784257,1774255839436,-151.0,0.00022535,2]
[408784258,1774255839445,-151.0,0.00022535,2]
[408784259,1774255839454,-151.0,0.00022535,2]
[408784260,1774255839463,-151.0,0.00022535,2]
[408784261,1774255839475,-151.0,0.00022535,2]
[408784262,1774255839484,-279.713441,0.00022535,2]
[408784263,1774255839493,-176.026129,0.00022535,2]
[408784264,1774255839502,-176.026129,0.00022535,2]
[408784265,1774255839511,-176.026129,0.00022535,2]
[408784266,1774255839520,-176.026129,0.00022535,2]
[408784267,1774255839529,-784.645632,0.00022535,2]
[408784268,1774255839538,-784.645632,0.00022535,2]
[408784269,1774255839549,-784.645632,0.00022535,2]
[408784270,1774255839558,-784.645632,0.00022535,2]
[408784271,1774255839567,-278.366751,0.00022535,2]
[408784272,1774255839576,-278.366751,0.00022535,2]
[408784273,1774255839586,-278.366751,0.00022535,2]
[408784274,1774255839595,-278.366751,0.00022535,2]
[408784275,1774255839604,-151.0,0.00022535,2]
[408784276,1774255839614,-151.0,0.00022535,2]
[408784277,1774255839623,-151.0,0.00022535,2]
[408784278,1774255839632,-151.0,0.00022535,2]
[408784279,1774255839642,-151.0,0.00022535,2]
[408784280,1774255839651,-151.0,0.00022535,2]
[408784281,1774255839660,-151.0,0.00022535,2]
[408784282,1774255839671,-234.0,0.00022535,2]
[408784283,1774255839681,-200.503863,0.00022535,2]
[408784284,1774255839691,-200.503863,0.00022535,2]
[408784285,1774255839699,-200.503863,0.00022535,2]
[408784286,1774255839708,-200.503863,0.00022535,2]
[408784287,1774255839717,-978.64,0.00022535,2]
[408784288,1774255839727,-500.0,0.00022573,2]
[408784289,1774255839739,-500.0,0.00022573,2]
[408784290,1774255839748,-500.0,0.00022739,4]
[408784291,1774255839757,-800.99,0.00022739,4]
[408784292,1774255839766,-500.0,0.00022739,4]
[408784294,1774255839777,-500.0,0.00022739,4]
[408784296,1774255839786,-1139.65928677,0.00022739,2]
[408784297,1774255839795,-530.71,0.00022739,4]
[408784298,1774255839805,-224.0,0.00022765,3]
[408784300,1774255839815,-162.29203952,0.000228,5]
[408784302,1774255839824,-2312.83697232,0.00022844,2]
[408784304,1774255839834,-2435.945798,0.00022852,2]
[408784305,1774255839843,-557.44069177,0.00022896,2]
[408784306,1774255839852,-690.0,0.00022987,3]
[408784307,1774255839861,-690.0,0.00022987,3]
[408784308,1774255839870,-646.0,0.00022987,3]
[408784309,1774255839880,-690.0,0.00022987,3]
[408784310,1774255839890,-172.0,0.00022987,3]
[408784311,1774255839899,-339.0,0.00022987,3]
[408784312,1774255839908,-646.0,0.00022987,3]
[408784313,1774255839918,-690.0,0.00022987,3]
[408784314,1774255839930,-567.03365126,0.00022987,3]
[408784315,1774255839939,-646.0,0.00022987,3]
[408784316,1774255839950,-690.0,0.00022987,3]
[408784317,1774255839960,-646.0,0.00022987,3]
[408784318,1774255839969,-690.0,0.00022987,3]
[408784319,1774255839982,-646.0,0.00022987,3]
[408784320,1774255839992,-690.0,0.00022987,3]
[408784321,1774255840001,-646.0,0.00022987,3]
[408784322,1774255840011,-690.0,0.00022987,3]
[408784323,1774255840020,-646.0,0.00022987,3]
[408784324,1774255840029,-690.0,0.00022987,3]
[408784325,1774255840039,-646.0,0.00022987,3]
[408784326,1774255840048,-690.0,0.00022987,3]
[408784327,1774255840057,-646.0,0.00022987,3]
[408784328,1774255840066,-690.0,0.00022987,3]
[408784329,1774255840076,-646.0,0.00022987,3]
[408784330,1774255840085,-690.0,0.00022987,3]
[408784331,1774255840095,-646.0,0.00022987,3]
[408784332,1774255840104,-506.84435919,0.00022987,3]
[408784333,1774255840113,-646.0,0.00022987,3]
[408784334,1774255840125,-646.0,0.00022987,3]
[408784335,1774255840134,-646.0,0.00022987,3]
[408784336,1774255840145,-646.0,0.00022987,3]
[408784337,1774255840154,-646.0,0.00022987,3]
[408784338,1774255840163,-646.0,0.00022987,3]
[408784340,1774255840173,-690.0,0.00022987,3]
[408784342,1774255840183,-690.0,0.00022987,3]
[408784344,1774255840192,-646.0,0.00022987,3]
[408784346,1774255840201,-690.0,0.00022987,3]
[408784348,1774255840210,-646.0,0.00022987,3]
[408784350,1774255840219,-690.0,0.00022987,3]
[408784352,1774255840229,-646.0,0.00022987,3]
[408784354,1774255840237,-690.0,0.00022987,3]
[408784356,1774255840246,-336.67096773,0.00022987,3]
[408784358,1774255840255,-690.0,0.00022987,3]
[408784360,1774255840265,-690.0,0.00022987,3]
[408784362,1774255840275,-690.0,0.00022987,3]
[408784364,1774255840284,-690.0,0.00022987,3]
[408784366,1774255840293,-690.0,0.00022987,3]
[408784368,1774255840302,-690.0,0.00022987,3]